bitfinex/quotes_BTCUSD_20241120
["timestamp","ask_amount","ask_price","bid_price","bid_amount"]
[1732124989499,0.0017118,94071.0,94050.0,0.10711512]
[1732124989726,0.0017118,94071.0,94051.0,0.123]
[1732124989952,0.0017118,94071.0,94053.0,0.1]
[1732124990160,0.0829,94070.0,94054.0,0.0223]
[1732124990455,0.0829,94070.0,94053.0,0.20711512]
[1732124991330,0.01,94068.0,94038.0,0.023]
[1732124991568,0.01,94068.0,94039.0,0.10711512]
[1732124991773,0.01,94068.0,94041.0,0.023]
[1732124992000,0.01,94068.0,94043.0,0.123]
[1732124992239,0.0829,94070.0,94044.0,0.10711512]
[1732124992459,0.0829,94070.0,94045.0,0.123]
[1732124992722,0.0829,94070.0,94047.0,0.023]
[1732124992925,0.0829,94070.0,94048.0,0.1338192]
[1732124993127,0.0829,94070.0,94049.0,0.123]
[1732124993339,0.0829,94070.0,94051.0,0.123]
[1732124993560,0.0829,94070.0,94052.0,0.10711512]
[1732124993778,0.0829,94070.0,94054.0,0.023]
[1732124994037,0.0829,94070.0,94056.0,0.023]
[1732124994254,0.0829,94070.0,94057.0,0.10711512]
[1732124994466,0.0829,94070.0,94058.0,0.023]
[1732124994676,0.0829,94070.0,94059.0,0.10711512]
[1732124994943,0.0017118,94071.0,94060.0,0.123]
[1732124995155,0.0017118,94071.0,94061.0,0.10711512]
[1732124995374,0.0017118,94071.0,94062.0,0.023]
[1732124995590,0.0017118,94071.0,94063.0,0.10711512]
[1732124995810,0.0017122,94070.0,94064.0,0.023]
[1732124996035,0.0017122,94070.0,94065.0,0.13012663]
[1732124996255,0.0017122,94070.0,94066.0,0.023]
[1732124996469,0.0017122,94070.0,94067.0,0.10817806]
[1732124996933,0.0017122,94070.0,94068.0,0.023]
[1732124997150,0.0017122,94070.0,94069.0,0.10711512]
[1732124997375,0.0017122,94070.0,94069.0,0.14312663]
[1732125001088,0.0017122,94070.0,94069.0,0.14312663]
[1732125002533,0.0017122,94070.0,94039.0,0.0201]
[1732125002753,0.0017122,94070.0,94044.0,0.123]
[1732125002932,0.0017122,94070.0,94046.0,0.123]
[1732125003154,0.0017122,94070.0,94044.0,0.123]
[1732125003155,0.0017122,94070.0,94054.0,0.10711512]
[1732125003385,2e-07,94070.0,94058.0,0.123]
[1732125003781,2e-07,94070.0,94061.0,0.023]
[1732125003990,1e-06,94071.0,94063.0,0.123]
[1732125004196,0.03401543,94080.0,94064.0,0.10817797]
[1732125004413,0.03401543,94080.0,94062.0,0.0123]
[1732125004414,0.0809,94099.0,94071.0,0.23011512]
[1732125005801,0.0809,94099.0,94072.0,0.00106272]
[1732125006002,0.0809,94099.0,94074.0,0.123]
[1732125006207,0.0809,94099.0,94076.0,0.123]
[1732125006581,0.0809,94099.0,94078.0,0.1]
[1732125006853,0.0809,94099.0,94079.0,0.13011512]
[1732125007086,0.0809,94099.0,94081.0,0.023]
[1732125007319,0.0809,94099.0,94083.0,0.1]
[1732125009527,0.01,94094.0,94076.0,0.023]
[1732125009744,0.0809,94099.0,94050.0,0.0201]
[1732125009745,0.01,94090.0,94070.0,0.1]
[1732125009962,0.01,94090.0,94055.0,0.00106292]
[1732125009963,0.01,94090.0,94071.0,0.10711512]
[1732125010195,0.0831,94093.0,94071.0,0.10711512]
[1732125010196,0.0831,94093.0,94072.0,0.11071151]
[1732125010418,0.0931,94093.0,94074.0,0.1]
[1732125010681,0.01,94090.0,94074.0,0.1]
[1732125010881,0.01,94090.0,94075.0,0.02178266]
[1732125011119,0.01969227,94089.0,94075.0,0.02178266]
[1732125011373,0.02969227,94088.0,94074.0,0.1]
[1732125011602,0.01,94083.0,94055.0,0.00676]
[1732125011847,0.01969227,94082.0,94056.0,0.10711512]
[1732125012101,0.01,94083.0,94056.0,0.10711512]
[1732125012102,0.01969227,94081.0,94057.0,0.01071151]
[1732125012341,0.01969227,94080.0,94058.0,0.10711512]
[1732125012812,0.01969227,94079.0,94059.0,0.123]
[1732125013045,0.01969227,94078.0,94061.0,0.123]
[1732125013388,0.0797,94087.0,94040.0,0.05669557]
[1732125013389,0.01969227,94077.0,94063.0,0.123]
[1732125013589,0.0797,94087.0,94066.0,0.123]
[1732125013801,0.03450846,94094.0,94068.0,0.123]
[1732125014038,0.03450846,94094.0,94069.0,0.00106278]
[1732125014247,0.1288,94096.0,94070.0,0.13011512]
[1732125014472,0.1288,94096.0,94072.0,0.023]
[1732125014678,0.0807,94096.0,94074.0,0.123]
[1732125014886,0.0807,94096.0,94076.0,0.123]
[1732125015129,0.0807,94096.0,94079.0,0.023]
[1732125015330,0.0807,94096.0,94081.0,0.123]
[1732125015543,0.0807,94096.0,94083.0,0.123]
[1732125015849,0.0807,94096.0,94085.0,0.123]
[1732125016073,0.0807,94096.0,94086.0,0.14242663]
[1732125016273,0.0807,94096.0,94087.0,0.1]
[1732125016983,0.0807,94096.0,94077.0,0.10711512]
[1732125017222,0.0807,94096.0,94078.0,0.123]
[1732125017430,0.01,94085.0,94078.0,0.02301151]
[1732125017641,0.01,94085.0,94045.0,0.00106295]
[1732125017878,0.01,94085.0,94049.0,0.10711512]
[1732125018098,0.01,94085.0,94050.0,0.01596781]
[1732125018352,0.01,94085.0,94051.0,0.10711512]
[1732125018580,0.10367262,94085.0,94052.0,0.10106296]
[1732125018810,0.10367262,94085.0,94053.0,0.13011512]
[1732125019047,0.10367262,94085.0,94055.0,0.023]
[1732125019291,0.10367262,94085.0,94054.0,0.11471459]
[1732125019292,0.0821,94084.0,94057.0,0.123]
[1732125019554,0.18734524,94090.0,94057.0,0.123]
[1732125019555,0.0821,94079.0,94059.0,0.123]
[1732125019765,0.01,94076.0,94059.0,0.1]
[1732125019993,0.01,94076.0,94060.0,0.02456012]
[1732125021108,0.01,94076.0,94061.0,0.1]
[1732125022389,0.10367262,94076.0,94061.0,0.1]
[1732125022618,0.01,94076.0,94061.0,0.1]
[1732125022831,0.04527174,94076.0,94061.0,0.1]
[1732125023039,0.01,94076.0,94062.0,0.03316752]
[1732125023270,0.09446507,94077.0,94064.0,0.023]
[1732125023508,0.09446507,94077.0,94062.0,0.14028264]
[1732125023509,0.11582543,94079.0,94066.0,0.123]
[1732125023722,0.11582543,94079.0,94068.0,0.123]
[1732125023953,0.11582543,94079.0,94068.0,0.23011512]
[1732125024206,1e-06,94079.0,94070.0,0.123]
[1732125024439,1e-06,94079.0,94072.0,0.123]
[1732125024675,1e-06,94079.0,94074.0,0.123]
[1732125024896,1e-06,94079.0,94076.0,0.123]
[1732125025108,1e-06,94079.0,94078.0,0.123]
[1732125025319,1e-06,94079.0,94078.0,0.23011512]
[1732125025531,1e-06,94079.0,94078.0,0.26312663]
[1732125026404,0.0495,94094.0,94078.0,0.26312663]
[1732125026405,0.0495,94094.0,94079.0,0.123]
[1732125026610,0.0495,94094.0,94078.0,0.14012663]
[1732125026611,0.09486507,94099.0,94081.0,0.123]
[1732125026837,0.09486507,94099.0,94083.0,0.123]
[1732125027058,0.0004,94099.0,94084.0,0.10711512]
[1732125027285,0.03386267,94098.0,94086.0,0.023]
[1732125027525,0.03386267,94098.0,94088.0,0.023]
[1732125027750,0.03386267,94098.0,94088.0,0.13011512]
[1732125028439,0.03386267,94098.0,94090.0,0.023]
[1732125028709,0.03386267,94098.0,94091.0,0.10711512]
[1732125028910,0.03386267,94098.0,94092.0,0.023]
[1732125029143,0.03386267,94098.0,94094.0,0.023]
[1732125029386,0.03386267,94098.0,94094.0,0.13011512]
[1732125029588,0.0004,94099.0,94094.0,0.13011512]
[1732125029589,0.0004,94099.0,94095.0,0.10711512]
[1732125029809,0.0004,94099.0,94096.0,0.023]
[1732125030020,0.0004,94099.0,94096.0,0.13011512]
[1732125030244,0.0004,94099.0,94096.0,0.14442778]
[1732125030892,0.0004,94099.0,94067.0,0.0829]
[1732125030893,0.0004,94099.0,94068.0,0.023]
[1732125031147,0.0004,94099.0,94073.0,0.023]
[1732125031396,0.0004,94099.0,94075.0,0.123]
[1732125031613,0.0004,94099.0,94073.0,0.023]
[1732125031614,0.0004,94099.0,94078.0,0.023]
[1732125031833,0.0004,94099.0,94081.0,0.023]
[1732125032037,0.0004,94099.0,94082.0,0.10711512]
[1732125032246,0.0004,94099.0,94084.0,0.023]
[1732125032496,0.0004,94099.0,94085.0,0.10711512]
[1732125032709,0.0004,94099.0,94086.0,0.14601151]
[1732125032710,0.0483,94096.0,94086.0,0.14601151]
[1732125032965,0.0483,94096.0,94087.0,0.10711512]
[1732125033197,0.0483,94096.0,94088.0,0.1]
[1732125033426,0.0483,94096.0,94088.0,0.10711512]
[1732125033636,0.0483,94096.0,94089.0,0.12301151]
[1732125034721,0.0483,94096.0,94090.0,0.13117785]
[1732125034949,0.0483,94096.0,94090.0,0.13011512]
[1732125035666,0.0483,94096.0,94089.0,0.02301151]
[1732125035905,0.02329999,94096.0,94079.0,0.0008558]
[1732125036134,0.02329999,94096.0,94081.0,0.123]
[1732125036366,0.02329999,94096.0,94083.0,0.123]
[1732125036603,0.02329999,94096.0,94081.0,0.123]
[1732125036604,0.02329999,94096.0,94085.0,0.1]
[1732125036831,0.02329999,94096.0,94085.0,0.20711512]
[1732125037343,0.0004,94099.0,94086.0,0.13011512]
[1732125037587,0.0004,94099.0,94087.0,0.1]
[1732125037825,0.0004,94099.0,94089.0,0.1]
[1732125038063,0.0004,94099.0,94090.0,0.13117772]
[1732125038064,1e-06,94099.0,94090.0,0.13117772]
[1732125038297,1e-06,94099.0,94092.0,0.023]
[1732125038538,1e-06,94099.0,94093.0,0.13129549]
[1732125038843,1e-06,94099.0,94095.0,0.023]
[1732125039075,1e-06,94099.0,94096.0,0.10711512]
[1732125039307,1e-06,94099.0,94097.0,0.023]
[1732125039530,1e-06,94099.0,94098.0,0.13011512]
[1732125040272,0.0017128,94111.0,94098.0,0.13011512]
[1732125040273,0.0017128,94111.0,94099.0,0.023]
[1732125040510,0.0017128,94111.0,94101.0,0.023]
[1732125040736,0.0017128,94111.0,94089.0,0.1]
[1732125040737,0.0343995,94110.0,94103.0,0.023]
[1732125040968,0.0343995,94110.0,94105.0,0.023]
[1732125041215,0.0343995,94110.0,94107.0,0.023]
[1732125041465,4e-07,94108.0,94107.0,0.24542663]
[1732125041674,0.0017134,94124.0,94108.0,0.023]
[1732125041899,0.0017134,94124.0,94110.0,0.123]
[1732125042122,0.0017134,94124.0,94112.0,0.023]
[1732125042354,0.0017134,94124.0,94111.0,0.10817755]
[1732125042355,0.01,94122.0,94109.0,0.02684266]
[1732125042570,0.01,94122.0,94107.0,0.1]
[1732125043029,0.01,94122.0,94085.0,0.023]
[1732125043254,0.01,94122.0,94090.0,0.023]
[1732125043255,0.08,94118.0,94090.0,0.023]
[1732125043487,0.08,94118.0,94092.0,0.123]
[1732125043720,0.08,94118.0,94094.0,0.123]
[1732125043970,0.01,94110.0,94095.0,0.03531151]
[1732125044190,0.01,94104.0,94083.0,0.10817778]
[1732125044415,0.01,94104.0,94083.0,0.10711512]
[1732125045338,0.01,94104.0,94084.0,0.023]
[1732125045564,0.01,94104.0,94086.0,0.023]
[1732125045790,0.01,94104.0,94088.0,0.023]
[1732125046023,0.09,94107.0,94089.0,0.10817782]
[1732125046253,0.01,94104.0,94090.0,0.01311778]
[1732125046498,0.01,94104.0,94090.0,0.11311778]
[1732125046953,0.01,94100.0,94090.0,0.01311778]
[1732125047174,0.01,94100.0,94079.0,0.0008558]
[1732125047175,0.0463,94097.0,94082.0,0.023]
[1732125047408,0.0463,94097.0,94079.0,0.0008558]
[1732125047409,0.0463,94097.0,94084.0,0.1]
[1732125047663,0.0463,94097.0,94085.0,0.03079709]
[1732125048389,0.0463,94097.0,94083.0,0.10711512]
[1732125048816,0.01,94091.0,94079.0,0.0008558]
[1732125049020,0.01,94090.0,94079.0,0.0008558]
[1732125050160,0.01,94086.0,94079.0,0.0008558]
[1732125050622,0.0772,94085.0,94079.0,0.0008558]
[1732125050854,0.0712,94085.0,94079.0,0.0008558]
[1732125051715,0.01,94080.0,94079.0,0.0008558]
[1732125052425,0.0462,94084.0,94079.0,0.0008558]
[1732125052657,0.0712,94085.0,94079.0,0.0008558]
[1732125053139,0.02725705,94090.0,94080.0,0.10711512]
[1732125053384,0.02725705,94090.0,94081.0,0.11437652]
[1732125053638,0.0462,94096.0,94081.0,0.11437652]
[1732125053877,0.07392372,94096.0,94082.0,0.13011512]
[1732125054147,0.0781,94104.0,94084.0,0.023]
[1732125054393,0.0781,94104.0,94083.0,0.10106271]
[1732125054394,0.0781,94104.0,94086.0,0.123]
[1732125054621,0.0781,94104.0,94087.0,0.10711512]
[1732125054887,0.0781,94104.0,94088.0,0.023]
[1732125055140,0.0781,94104.0,94086.0,0.123]
[1732125055141,0.0781,94104.0,94090.0,0.023]
[1732125055385,0.0781,94104.0,94092.0,0.023]
[1732125055609,0.0462,94110.0,94094.0,0.023]
[1732125055833,0.0462,94110.0,94096.0,0.023]
[1732125056069,0.0462,94110.0,94097.0,0.10711512]
[1732125056314,0.0462,94110.0,94098.0,0.023]
[1732125056558,0.02796223,94118.0,94100.0,0.023]
[1732125056788,0.02796223,94118.0,94102.0,0.123]
[1732125057016,0.02796223,94118.0,94104.0,0.023]
[1732125057236,0.02796223,94118.0,94105.0,0.13129539]
[1732125057486,0.02796223,94118.0,94106.0,0.023]
[1732125057694,0.02796223,94118.0,94107.0,0.10711512]
[1732125057956,0.02796223,94118.0,94108.0,0.023]
[1732125058169,0.02796223,94118.0,94109.0,0.10711512]
[1732125058397,0.02796223,94118.0,94110.0,0.023]
[1732125058617,0.02796223,94118.0,94111.0,0.10711512]
[1732125059359,0.0008555,94112.0,94111.0,0.13011512]
[1732125059809,5e-07,94112.0,94111.0,0.23011512]
[1732125061470,0.0004,94119.0,94112.0,0.123]
[1732125061471,3e-07,94119.0,94112.0,0.123]
[1732125061686,0.0017134,94124.0,94105.0,0.02795161]
[1732125061687,7e-07,94124.0,94114.0,0.123]
[1732125061923,7e-07,94124.0,94116.0,0.123]
[1732125062138,7e-07,94124.0,94119.0,0.023]
[1732125062354,7e-07,94124.0,94121.0,0.123]
[1732125062570,7e-07,94124.0,94123.0,0.123]
[1732125062794,7e-07,94124.0,94123.0,0.23011512]
[1732125063032,7e-07,94124.0,94123.0,0.25312663]
[1732125063482,0.02749776,94128.0,94123.0,0.25312663]
[1732125063483,4.6e-07,94128.0,94124.0,0.123]
[1732125063735,0.0017136,94132.0,94124.0,0.123]
[1732125063736,0.0017136,94132.0,94126.0,0.123]
[1732125063960,0.0017136,94132.0,94127.0,0.10817733]
[1732125064188,0.0017136,94132.0,94129.0,0.023]
[1732125064405,0.0017136,94132.0,94130.0,0.10817733]
[1732125064620,0.0017136,94132.0,94131.0,0.023]
[1732125064842,0.0017136,94132.0,94131.0,0.15553285]
[1732125065315,6e-07,94132.0,94131.0,0.15553285]
[1732125065526,6e-07,94132.0,94131.0,0.156595]
[1732125065739,6e-07,94132.0,94131.0,0.256595]
[1732125065957,0.02675799,94136.0,94132.0,0.123]
[1732125066171,0.0772,94148.0,94134.0,0.123]
[1732125066391,0.0772,94148.0,94135.0,0.10711512]
[1732125066632,0.0772,94148.0,94136.0,0.123]
[1732125066888,0.0467,94154.0,94138.0,0.123]
[1732125067157,0.0467,94154.0,94141.0,0.023]
[1732125067384,0.07410113,94154.0,94141.0,0.13011512]
[1732125067628,0.01,94145.0,94142.0,0.02301151]
[1732125067847,0.07410113,94154.0,94122.0,0.123]
[1732125067848,0.01,94146.0,94122.0,0.123]
[1732125068069,0.01,94146.0,94124.0,0.123]
[1732125068300,0.01,94146.0,94126.0,0.023]
[1732125068521,0.01,94146.0,94128.0,0.123]
[1732125068762,0.01,94146.0,94129.0,0.10711512]
[1732125068989,0.01,94146.0,94130.0,0.123]
[1732125069211,0.01,94146.0,94131.0,0.13012663]
[1732125069467,0.01,94146.0,94132.0,0.123]
[1732125069677,0.01,94146.0,94132.0,0.23011512]
[1732125070566,0.08410113,94154.0,94111.0,0.02774071]
[1732125070567,0.01,94139.0,94111.0,0.02774071]
[1732125071073,0.01,94129.0,94113.0,0.10711512]
[1732125071304,0.01,94126.0,94114.0,0.01071151]
[1732125071558,0.01,94126.0,94092.0,0.0457]
[1732125071559,0.01,94137.0,94115.0,0.10711512]
[1732125071774,0.075,94141.0,94115.0,0.10711512]
[1732125071775,0.085,94141.0,94115.0,0.10817755]
[1732125071992,0.075,94141.0,94116.0,0.11870884]
[1732125072224,0.075,94141.0,94118.0,0.1]
[1732125072441,0.075,94141.0,94119.0,0.13011512]
[1732125072666,0.075,94141.0,94121.0,0.023]
[1732125072885,0.0008554,94154.0,94121.0,0.023]
[1732125072886,0.0929,94152.0,94123.0,0.123]
[1732125073108,0.0929,94152.0,94125.0,0.123]
[1732125073337,0.0929,94152.0,94127.0,0.123]
[1732125073586,0.0929,94152.0,94130.0,0.023]
[1732125073818,0.0929,94152.0,94131.0,0.10711512]
[1732125074032,0.0929,94152.0,94132.0,0.123]
[1732125074246,0.0929,94152.0,94134.0,0.123]
[1732125074470,0.0929,94152.0,94135.0,0.10711512]
[1732125074705,0.0929,94152.0,94136.0,0.123]
[1732125074958,0.0929,94152.0,94137.0,0.10711512]
[1732125075402,0.0929,94152.0,94136.0,0.123]
[1732125075403,0.01,94148.0,94136.0,0.1]
[1732125075617,0.01,94140.0,94136.0,0.0123]
[1732125075825,0.01,94140.0,94112.0,0.023]
[1732125076099,0.01,94140.0,94113.0,0.10711512]
[1732125076334,0.01,94151.0,94114.0,0.123]
[1732125076335,0.01,94147.0,94114.0,0.123]
[1732125076556,0.0929,94152.0,94120.0,0.123]
[1732125076771,0.1029,94152.0,94122.0,0.123]
[1732125077018,0.1029,94152.0,94123.0,0.10711512]
[1732125077276,0.1029,94152.0,94125.0,0.023]
[1732125077469,0.1029,94152.0,94126.0,0.10711512]
[1732125077684,0.1029,94152.0,94128.0,0.023]
[1732125077903,0.1029,94152.0,94129.0,0.10711512]
[1732125078122,0.1029,94152.0,94130.0,0.123]
[1732125078123,0.01,94146.0,94130.0,0.123]
[1732125078333,0.01,94146.0,94131.0,0.10711512]
[1732125078569,0.01,94146.0,94132.0,0.12531266]
[1732125079498,0.0929,94152.0,94132.0,0.12531266]
[1732125079499,0.0929,94152.0,94135.0,0.023]
[1732125079717,0.0929,94152.0,94137.0,0.1]
[1732125079924,0.0929,94152.0,94138.0,0.00106214]
[1732125080602,0.0929,94152.0,94139.0,0.10711512]
[1732125080603,0.0829,94152.0,94139.0,0.10711512]
[1732125080853,0.0829,94152.0,94140.0,0.15789134]
[1732125081076,0.02857113,94154.0,94140.0,0.15789134]
[1732125081077,0.02857113,94154.0,94143.0,0.023]
[1732125081283,0.02857113,94154.0,94145.0,0.023]
[1732125081494,0.02857113,94154.0,94143.0,0.023]
[1732125081495,0.02857113,94154.0,94146.0,0.10817718]
[1732125081723,1.3e-07,94154.0,94146.0,0.10817718]
[1732125081945,0.0004,94159.0,94148.0,0.023]
[1732125082160,0.02745316,94159.0,94150.0,0.1]
[1732125082407,0.0004,94159.0,94151.0,0.16435663]
[1732125082618,0.0004,94159.0,94153.0,0.023]
[1732125082850,0.0004,94159.0,94155.0,0.023]
[1732125083084,0.0004,94159.0,94155.0,0.13011512]
[1732125083290,0.0004,94159.0,94156.0,0.02301151]
[1732125084076,0.01,94155.0,94144.0,0.0123]
[1732125084288,0.01,94155.0,94132.0,0.0017104]
[1732125084504,0.01,94155.0,94134.0,0.1]
[1732125084717,0.01,94155.0,94136.0,0.1]
[1732125084927,0.01,94155.0,94138.0,0.1]
[1732125085143,0.01,94155.0,94140.0,0.1]
[1732125085398,0.01,94155.0,94142.0,0.1]
[1732125085616,0.0004,94159.0,94144.0,0.1]
[1732125085851,0.0004,94159.0,94146.0,0.1]
[1732125086098,0.0004,94159.0,94148.0,0.1]
[1732125086343,0.0004,94159.0,94151.0,0.023]
[1732125086610,0.02881136,94164.0,94153.0,0.123]
[1732125086862,0.02881136,94164.0,94155.0,0.123]
[1732125087086,0.02881136,94164.0,94156.0,0.10711512]
[1732125087328,0.02881136,94164.0,94158.0,0.023]
[1732125087597,0.02881136,94164.0,94160.0,0.023]
[1732125087829,9.6e-07,94165.0,94162.0,0.123]
[1732125088046,0.0017118,94166.0,94162.0,0.123]
[1732125088047,7.6e-07,94166.0,94163.0,0.14169282]
[1732125088295,7.6e-07,94166.0,94164.0,0.023]
[1732125088513,0.02707665,94166.0,94165.0,0.10711512]
[1732125088730,7.6e-07,94166.0,94165.0,0.1565844]
[1732125089594,7.6e-07,94166.0,94165.0,0.02646928]
[1732125089813,7.6e-07,94166.0,94145.0,0.023]
[1732125090069,7.6e-07,94166.0,94146.0,0.10711512]
[1732125090349,0.01,94164.0,94147.0,0.1]
[1732125090570,0.01,94161.0,94148.0,0.12782663]
[1732125090781,0.0080441,94161.0,94149.0,0.1]
[1732125091046,0.0080441,94161.0,94150.0,0.02071151]
[1732125091981,0.0494,94165.0,94150.0,0.02071151]
[1732125092222,7.6e-07,94166.0,94152.0,0.1]
[1732125092440,0.02785414,94165.0,94153.0,0.13011512]
[1732125092667,7.6e-07,94166.0,94155.0,0.023]
[1732125092906,0.0274437,94166.0,94157.0,0.123]
[1732125093142,0.0274437,94166.0,94159.0,0.123]
[1732125093371,7.6e-07,94166.0,94160.0,0.10711512]
[1732125093817,7.6e-07,94166.0,94161.0,0.023]
[1732125094035,7.6e-07,94166.0,94163.0,0.023]
[1732125094727,7.6e-07,94166.0,94162.0,0.02424151]
[1732125094728,0.0080441,94165.0,94162.0,0.02424151]
[1732125094948,0.0080441,94165.0,94159.0,0.023]
[1732125096027,0.0030441,94165.0,94159.0,0.023]
[1732125099630,7.6e-07,94166.0,94159.0,0.023]
[1732125099850,0.0030441,94165.0,94159.0,0.023]
[1732125100306,0.00304486,94166.0,94159.0,0.023]
[1732125100528,0.0030441,94165.0,94159.0,0.023]
[1732125100743,0.00304486,94166.0,94159.0,0.023]
[1732125100957,0.0030441,94165.0,94159.0,0.023]
[1732125101181,7.6e-07,94166.0,94159.0,0.023]
[1732125101907,7.6e-07,94166.0,94151.0,0.023]
[1732125102144,7.6e-07,94166.0,94154.0,0.023]
[1732125102374,7.6e-07,94166.0,94156.0,0.123]
[1732125102593,7.6e-07,94166.0,94159.0,0.023]
[1732125104219,7.6e-07,94166.0,94148.0,0.00171]
[1732125104220,8.3e-07,94172.0,94161.0,0.123]
[1732125104466,0.0030441,94180.0,94163.0,0.123]
[1732125104681,0.0030441,94180.0,94165.0,0.123]
[1732125104912,0.02799773,94179.0,94167.0,0.123]
[1732125105140,0.0004,94179.0,94170.0,0.023]
[1732125106949,0.001255,94179.0,94170.0,0.023]
[1732125110968,0.03030682,94180.0,94170.0,0.023]
[1732125110969,0.01556182,94180.0,94170.0,0.023]
[1732125111199,0.0914,94184.0,94172.0,0.023]
[1732125111644,0.11353075,94184.0,94172.0,0.023]
[1732125111862,0.10353075,94184.0,94172.0,0.023]
[1732125112092,0.02213075,94184.0,94173.0,0.02766566]
[1732125112337,0.02213075,94184.0,94172.0,0.13011512]
[1732125112562,0.0478,94190.0,94172.0,0.13011512]
[1732125113002,0.01,94185.0,94172.0,0.13011512]
[1732125113223,0.01,94185.0,94174.0,0.023]
[1732125115840,0.01,94185.0,94165.0,0.0725475]
[1732125116106,0.01,94185.0,94166.0,0.11436987]
[1732125116800,0.0696175,94190.0,94167.0,0.00106179]
[1732125117031,0.0696175,94190.0,94167.0,0.10817691]
[1732125117265,0.0696175,94190.0,94168.0,0.10711512]
[1732125117992,0.0696175,94190.0,94169.0,0.123]
[1732125118212,0.0696175,94190.0,94170.0,0.10711512]
[1732125118452,0.0696175,94190.0,94171.0,0.123]
[1732125118692,0.0696175,94190.0,94172.0,0.10711512]
[1732125118914,0.06142717,94194.0,94173.0,0.14804221]
[1732125119146,0.06142717,94194.0,94176.0,0.023]
[1732125119147,0.08363946,94194.0,94176.0,0.023]
[1732125119370,0.08363946,94194.0,94177.0,0.02301151]
[1732125119622,0.08363946,94194.0,94176.0,0.023]
[1732125120792,0.08363946,94194.0,94174.0,0.123]
[1732125121026,0.08363946,94194.0,94176.0,0.023]
[1732125121772,0.08363946,94194.0,94175.0,0.02318249]
[1732125121773,0.09363946,94194.0,94175.0,0.02318249]
[1732125122012,0.09363946,94194.0,94168.0,0.0017098]
[1732125122013,0.01,94186.0,94177.0,0.0017065]
[1732125122247,0.08363946,94194.0,94177.0,0.0017065]
[1732125122248,0.01,94178.0,94177.0,0.0017065]
[1732125122494,0.19851512,94178.0,94177.0,0.0017065]
[1732125125962,0.29344425,94178.0,94177.0,0.0017065]
[1732125126418,0.29352937,94178.0,94177.0,0.0017065]
[1732125126642,0.19851512,94178.0,94177.0,0.0017065]
[1732125127612,0.19851512,94178.0,94165.0,0.0659638]
[1732125127613,0.01,94166.0,94165.0,0.0659638]
[1732125127862,0.25361512,94166.0,94165.0,0.0659638]
[1732125128083,0.1365,94149.0,94132.0,0.0017104]
[1732125128336,0.24361512,94149.0,94132.0,0.0017104]
[1732125128551,0.24361512,94149.0,94102.0,0.14235762]
[1732125128552,0.01,94136.0,94098.0,0.002]
[1732125128794,0.23361512,94149.0,94076.0,0.00216637]
[1732125128795,0.01,94126.0,94099.0,0.10711512]
[1732125129120,0.01,94121.0,94099.0,0.10711512]
[1732125129369,0.01,94121.0,94100.0,0.01071151]
[1732125129597,0.01,94121.0,94101.0,0.10711512]
[1732125130517,0.01,94125.0,94075.0,0.0017098]
[1732125130518,0.0804,94115.0,94086.0,0.02240593]
[1732125130754,0.01,94112.0,94087.0,0.10711512]
[1732125131007,0.01,94112.0,94099.0,0.0017094]
[1732125131468,0.0804,94115.0,94099.0,0.0017094]
[1732125131469,0.01,94106.0,94099.0,0.0017094]
[1732125131688,0.01,94100.0,94099.0,0.0017094]
[1732125131933,0.02,94100.0,94099.0,0.0017094]
[1732125132380,0.20581512,94100.0,94099.0,0.0017094]
[1732125133151,0.0987,94100.0,94099.0,0.0017094]
[1732125135042,0.20581512,94100.0,94099.0,0.0017094]
[1732125137006,0.0987,94100.0,94099.0,0.0017094]
[1732125138142,0.02207063,94106.0,94099.0,0.0017094]
[1732125138571,0.01,94111.0,94099.0,0.0017094]
[1732125139025,0.0482,94121.0,94099.0,0.0017094]
[1732125139026,0.01,94116.0,94100.0,0.123]
[1732125139266,0.0582,94121.0,94102.0,0.023]
[1732125139487,0.01,94121.0,94104.0,0.123]
[1732125139703,0.01,94121.0,94106.0,0.023]
[1732125140170,0.01,94121.0,94105.0,0.023]
[1732125140393,0.0474,94135.0,94105.0,0.023]
[1732125140394,0.01,94131.0,94106.0,0.0010625]
[1732125140637,0.0474,94135.0,94108.0,0.123]
[1732125140862,0.02,94132.0,94110.0,0.023]
[1732125141105,0.01,94132.0,94112.0,0.123]
[1732125141326,0.02,94143.0,94114.0,0.123]
[1732125141614,0.02,94143.0,94105.0,0.0807]
[1732125141615,0.0497,94149.0,94116.0,0.123]
[1732125141616,0.01,94148.0,94116.0,0.123]
[1732125141862,0.01,94148.0,94118.0,0.123]
[1732125142112,0.01,94148.0,94120.0,0.1]
[1732125142363,0.01,94148.0,94123.0,0.023]
[1732125142619,0.01,94148.0,94125.0,0.123]
[1732125142831,0.01,94148.0,94127.0,0.123]
[1732125143074,0.0220085,94149.0,94129.0,0.123]
[1732125143291,0.02,94161.0,94129.0,0.123]
[1732125143292,0.02205391,94155.0,94131.0,0.123]
[1732125143541,0.02205391,94155.0,94119.0,0.0496]
[1732125143542,0.02205391,94155.0,94133.0,0.123]
[1732125143761,0.01,94170.0,94137.0,0.023]
[1732125144010,0.0767,94173.0,94136.0,0.002]
[1732125144011,0.0767,94173.0,94139.0,0.123]
[1732125144269,0.01,94167.0,94141.0,0.123]
[1732125144456,0.09946038,94173.0,94142.0,0.10711512]
[1732125144457,0.03276038,94173.0,94142.0,0.10711512]
[1732125144746,0.03276038,94173.0,94143.0,0.15400151]
[1732125144957,0.01,94167.0,94144.0,0.10711512]